[Event "Titled Tuesday Blitz December 06 Early 2022"]
[White "Sailer, Mike"]
[Black "Bashirli, Saadat"]
[WhiteFideId "2012901"]
[BlackFideId "13429990"]
[WhiteElo "2109"]
[BlackElo "1408"]
[Result "0-1"]
[Round "04"]
[TimeControl "180+1"]
[Date "2022.12.07"]
[WhiteClock "0:00:05"]
[BlackClock "0:01:13"]

1. Nf3 {[%clk 0:03:00]}  d5 {[%clk 0:02:59]} 2. c4 {[%clk 0:03:00]}  e6 {[%clk 0:02:59]} 3. g3 {[%clk 0:03:00]}  Nf6 {[%clk 0:02:55]} 4. Bg2 {[%clk 0:03:01]}  c6 {[%clk 0:02:52]} 5. O-O {[%clk 0:03:00]}  Nbd7 {[%clk 0:02:50]} 6. b3 {[%clk 0:02:58]}  Bd6 {[%clk 0:02:50]} 7. Bb2 {[%clk 0:02:58]}  O-O {[%clk 0:02:51]} 8. d3 {[%clk 0:02:58]}  e5 {[%clk 0:02:50]} 9. Nbd2 {[%clk 0:02:56]}  Re8 {[%clk 0:02:50]} 10. e4 {[%clk 0:02:57]}  d4 {[%clk 0:02:47]} 11. Nh4 {[%clk 0:02:51]}  Nc5 {[%clk 0:02:47]} 12. Qe2 {[%clk 0:02:36]}  a5 {[%clk 0:02:44]} 13. Nf5 {[%clk 0:02:25]}  Bxf5 {[%clk 0:02:40]} 14. exf5 {[%clk 0:02:25]}  Rb8 {[%clk 0:02:32]} 15. g4 {[%clk 0:02:16]}  Qd7 {[%clk 0:02:27]} 16. g5 {[%clk 0:02:05]}  Nd5 {[%clk 0:02:16]} 17. cxd5 {[%clk 0:02:02]}  cxd5 {[%clk 0:02:17]} 18. f6 {[%clk 0:01:24]}  e4 {[%clk 0:02:11]} 19. dxe4 {[%clk 0:01:16]}  dxe4 {[%clk 0:02:12]} 20. Bxd4 {[%clk 0:01:03]}  Bxh2+ {[%clk 0:02:06]} 21. Kxh2 {[%clk 0:01:04]}  Qxd4 {[%clk 0:02:07]} 22. fxg7 {[%clk 0:01:00]}  Qe5+ {[%clk 0:02:01]} 23. Kg1 {[%clk 0:00:58]}  Qxg5 {[%clk 0:02:02]} 24. Qe3 {[%clk 0:00:52]}  Qh5 {[%clk 0:01:51]} 25. Rac1 {[%clk 0:00:31]}  Nd3 {[%clk 0:01:46]} 26. Rc7 {[%clk 0:00:30]}  Re6 {[%clk 0:01:38]} 27. Nxe4 {[%clk 0:00:26]}  Nb4 {[%clk 0:01:33]} 28. Qf4 {[%clk 0:00:18]}  Nd5 {[%clk 0:01:31]} 29. Qg3 {[%clk 0:00:09]}  Nxc7 {[%clk 0:01:30]} 30. Qxc7 {[%clk 0:00:10]}  Rbe8 {[%clk 0:01:27]} 31. Qf4 {[%clk 0:00:08]}  Qg6 {[%clk 0:01:20]} 32. Ng3 {[%clk 0:00:07]}  Qxg7 {[%clk 0:01:19]} 33. Rd1 {[%clk 0:00:06]}  Rf6 {[%clk 0:01:15]} 34. Qg4 {[%clk 0:00:05]}  Qxg4 {[%clk 0:01:13]} 0-1


[Site "https://www.chess.com"]

[Event "Titled Tuesday Blitz December 06 Early 2022"]
[White "Salinas Herrera, Pablo"]
[Black "Pajeken, Jakob Leon"]
[WhiteFideId "3407128"]
[BlackFideId "12942839"]
[WhiteElo "2557"]
[BlackElo "2414"]
[Result "0-1"]
[Round "04"]
[TimeControl "180+1"]
[Date "2022.12.07"]
[WhiteClock "0:00:28"]
[BlackClock "0:01:00"]

1. e4 {[%clk 0:03:00]}  e5 {[%clk 0:03:00]} 2. Nf3 {[%clk 0:02:58]}  Nc6 {[%clk 0:03:00]} 3. Bb5 {[%clk 0:02:58]}  a6 {[%clk 0:03:00]} 4. Ba4 {[%clk 0:02:59]}  Be7 {[%clk 0:03:00]} 5. O-O {[%clk 0:02:59]}  Nf6 {[%clk 0:03:00]} 6. d3 {[%clk 0:02:58]}  b5 {[%clk 0:02:59]} 7. Bb3 {[%clk 0:02:58]}  d6 {[%clk 0:03:00]} 8. a3 {[%clk 0:02:58]}  O-O {[%clk 0:03:00]} 9. Nc3 {[%clk 0:02:58]}  Na5 {[%clk 0:02:59]} 10. Ba2 {[%clk 0:02:58]}  c5 {[%clk 0:03:00]} 11. Nd5 {[%clk 0:02:59]}  Be6 {[%clk 0:02:56]} 12. c3 {[%clk 0:02:57]}  Nxd5 {[%clk 0:02:52]} 13. exd5 {[%clk 0:02:56]}  Bd7 {[%clk 0:02:47]} 14. b4 {[%clk 0:02:56]}  Nb7 {[%clk 0:02:47]} 15. Re1 {[%clk 0:02:55]}  f5 {[%clk 0:02:45]} 16. Bd2 {[%clk 0:02:52]}  Bf6 {[%clk 0:02:44]} 17. Rc1 {[%clk 0:02:52]}  a5 {[%clk 0:02:40]} 18. bxc5 {[%clk 0:02:50]}  Nxc5 {[%clk 0:02:39]} 19. d4 {[%clk 0:02:50]}  Nd3 {[%clk 0:02:38]} 20. dxe5 {[%clk 0:02:50]}  dxe5 {[%clk 0:02:38]} 21. c4 {[%clk 0:02:26]}  Nxc1 {[%clk 0:02:17]} 22. Bxc1 {[%clk 0:02:23]}  e4 {[%clk 0:02:16]} 23. Nd4 {[%clk 0:02:23]}  bxc4 {[%clk 0:02:16]} 24. Bxc4 {[%clk 0:02:21]}  Rc8 {[%clk 0:02:15]} 25. Nc6 {[%clk 0:02:15]}  Bxc6 {[%clk 0:02:13]} 26. dxc6+ {[%clk 0:02:15]}  Kh8 {[%clk 0:02:13]} 27. Bb5 {[%clk 0:02:10]}  Bc3 {[%clk 0:02:08]} 28. Rf1 {[%clk 0:02:07]}  f4 {[%clk 0:01:59]} 29. Qc2 {[%clk 0:01:54]}  Qd5 {[%clk 0:01:57]} 30. a4 {[%clk 0:01:51]}  Bf6 {[%clk 0:01:51]} 31. Rd1 {[%clk 0:01:51]}  Qf5 {[%clk 0:01:49]} 32. Re1 {[%clk 0:01:31]}  Rfe8 {[%clk 0:01:32]} 33. Bd2 {[%clk 0:01:10]}  Qg4 {[%clk 0:01:10]} 34. Bxa5 {[%clk 0:00:57]}  f3 {[%clk 0:01:05]} 35. g3 {[%clk 0:00:57]}  Re5 {[%clk 0:01:02]} 36. Bb6 {[%clk 0:00:28]}  Rxb5 {[%clk 0:01:00]} 0-1


[Site "https://www.chess.com"]

[Event "Titled Tuesday Blitz December 06 Early 2022"]
[White "Sava, Christiansen-Danut-Eugen"]
[Black "Krzywda, Andrzej"]
[WhiteFideId "1210114"]
[BlackFideId "1114565"]
[WhiteElo "1904"]
[BlackElo "2149"]
[Result "0-1"]
[Round "04"]
[TimeControl "180+1"]
[Date "2022.12.07"]
[WhiteClock "0:00:13"]
[BlackClock "0:00:22"]

1. d4 {[%clk 0:02:59]}  Nf6 {[%clk 0:02:59]} 2. c4 {[%clk 0:02:58]}  c5 {[%clk 0:03:00]} 3. d5 {[%clk 0:02:58]}  b5 {[%clk 0:03:00]} 4. cxb5 {[%clk 0:02:59]}  a6 {[%clk 0:03:01]} 5. bxa6 {[%clk 0:02:56]}  g6 {[%clk 0:03:01]} 6. Nc3 {[%clk 0:02:55]}  Bg7 {[%clk 0:03:01]} 7. g3 {[%clk 0:02:50]}  O-O {[%clk 0:03:01]} 8. Bg2 {[%clk 0:02:51]}  d6 {[%clk 0:03:01]} 9. Nf3 {[%clk 0:02:51]}  Nxa6 {[%clk 0:03:02]} 10. O-O {[%clk 0:02:51]}  Bf5 {[%clk 0:03:02]} 11. a4 {[%clk 0:02:41]}  Nb4 {[%clk 0:02:55]} 12. Nh4 {[%clk 0:02:38]}  Bc2 {[%clk 0:02:45]} 13. Qd2 {[%clk 0:02:36]}  Bb3 {[%clk 0:02:44]} 14. Ra3 {[%clk 0:02:35]}  Bc4 {[%clk 0:02:41]} 15. b3 {[%clk 0:02:35]}  Ba6 {[%clk 0:02:42]} 16. Re1 {[%clk 0:02:32]}  Qa5 {[%clk 0:02:42]} 17. Ra1 {[%clk 0:02:25]}  Rfb8 {[%clk 0:02:39]} 18. Ba3 {[%clk 0:02:23]}  Ra7 {[%clk 0:02:31]} 19. Red1 {[%clk 0:02:17]}  Nd7 {[%clk 0:02:21]} 20. Rab1 {[%clk 0:02:04]}  Rab7 {[%clk 0:02:08]} 21. Nf3 {[%clk 0:01:54]}  Qc7 {[%clk 0:01:53]} 22. Nb5 {[%clk 0:01:47]}  Bxb5 {[%clk 0:01:52]} 23. Bxb4 {[%clk 0:01:47]}  Ba6 {[%clk 0:01:45]} 24. Bc3 {[%clk 0:01:45]}  Rxb3 {[%clk 0:01:32]} 25. Rxb3 {[%clk 0:01:43]}  Rxb3 {[%clk 0:01:33]} 26. Bxg7 {[%clk 0:01:42]}  Kxg7 {[%clk 0:01:34]} 27. Qc2 {[%clk 0:01:37]}  Qb8 {[%clk 0:01:20]} 28. e4 {[%clk 0:01:35]}  f6 {[%clk 0:01:18]} 29. Nd2 {[%clk 0:01:28]}  Rb2 {[%clk 0:01:16]} 30. Qc3 {[%clk 0:01:28]}  Qb4 {[%clk 0:01:16]} 31. Qxb4 {[%clk 0:01:19]}  Rxb4 {[%clk 0:01:17]} 32. Ra1 {[%clk 0:01:17]}  c4 {[%clk 0:01:14]} 33. Bf1 {[%clk 0:01:14]}  Ne5 {[%clk 0:01:13]} 34. f4 {[%clk 0:01:12]}  Ng4 {[%clk 0:00:59]} 35. a5 {[%clk 0:01:04]}  Ne3 {[%clk 0:00:53]} 36. Bxc4 {[%clk 0:00:45]}  Nxc4 {[%clk 0:00:50]} 37. Nxc4 {[%clk 0:00:46]}  Rxc4 {[%clk 0:00:50]} 38. Re1 {[%clk 0:00:41]}  Ra4 {[%clk 0:00:49]} 39. e5 {[%clk 0:00:41]}  fxe5 {[%clk 0:00:48]} 40. fxe5 {[%clk 0:00:42]}  Rxa5 {[%clk 0:00:48]} 41. exd6 {[%clk 0:00:31]}  exd6 {[%clk 0:00:48]} 42. Re7+ {[%clk 0:00:32]}  Kg8 {[%clk 0:00:44]} 43. Ra7 {[%clk 0:00:30]}  Ra2 {[%clk 0:00:33]} 44. g4 {[%clk 0:00:26]}  Bc4 {[%clk 0:00:30]} 45. Rd7 {[%clk 0:00:23]}  Ra6 {[%clk 0:00:29]} 46. g5 {[%clk 0:00:22]}  Bxd5 {[%clk 0:00:29]} 47. Rd8+ {[%clk 0:00:23]}  Kg7 {[%clk 0:00:27]} 48. Rd7+ {[%clk 0:00:24]}  Bf7 {[%clk 0:00:28]} 49. Kf2 {[%clk 0:00:25]}  Ra3 {[%clk 0:00:28]} 50. Kg2 {[%clk 0:00:23]}  Rd3 {[%clk 0:00:27]} 51. h4 {[%clk 0:00:23]}  d5 {[%clk 0:00:25]} 52. Kh2 {[%clk 0:00:22]}  d4 {[%clk 0:00:26]} 53. Kg2 {[%clk 0:00:22]}  Rd2+ {[%clk 0:00:26]} 54. Kf3 {[%clk 0:00:22]}  Kf8 {[%clk 0:00:26]} 55. Ke4 {[%clk 0:00:18]}  Rh2 {[%clk 0:00:24]} 56. Kxd4 {[%clk 0:00:13]}  Rd2+ {[%clk 0:00:23]} 57. Ke5 {[%clk 0:00:12]}  Rxd7 {[%clk 0:00:23]} 58. h5 {[%clk 0:00:12]}  Rd5+ {[%clk 0:00:22]} 59. Kf6 {[%clk 0:00:13]}  Rf5# {[%clk 0:00:22]} 0-1


[Site "https://www.chess.com"]

[Event "Titled Tuesday Blitz December 06 Early 2022"]
[White "Schekachikhin, Maksim"]
[Black "Papasimakopoulos, Alexandros"]
[WhiteFideId "24177830"]
[BlackFideId "4244125"]
[WhiteElo "2272"]
[BlackElo "2384"]
[Result "0-1"]
[Round "04"]
[TimeControl "180+1"]
[Date "2022.12.07"]
[WhiteClock "0:02:04"]
[BlackClock "0:01:59"]

1. Nf3 {[%clk 0:03:00]}  d5 {[%clk 0:02:57]} 2. d4 {[%clk 0:02:56]}  Bf5 {[%clk 0:02:57]} 3. Bf4 {[%clk 0:02:56]}  e6 {[%clk 0:02:56]} 4. Nbd2 {[%clk 0:02:56]}  Bd6 {[%clk 0:02:54]} 5. e3 {[%clk 0:02:55]}  Nf6 {[%clk 0:02:48]} 6. Be2 {[%clk 0:02:49]}  O-O {[%clk 0:02:45]} 7. O-O {[%clk 0:02:46]}  c5 {[%clk 0:02:40]} 8. c3 {[%clk 0:02:44]}  Nc6 {[%clk 0:02:40]} 9. h3 {[%clk 0:02:37]}  Bxf4 {[%clk 0:02:34]} 10. exf4 {[%clk 0:02:35]}  cxd4 {[%clk 0:02:34]} 11. cxd4 {[%clk 0:02:36]}  a5 {[%clk 0:02:31]} 12. Nb3 {[%clk 0:02:33]}  a4 {[%clk 0:02:29]} 13. Nc5 {[%clk 0:02:31]}  a3 {[%clk 0:02:29]} 14. b3 {[%clk 0:02:19]}  b6 {[%clk 0:02:28]} 15. Nd3 {[%clk 0:02:17]}  Qd6 {[%clk 0:02:02]} 16. Nde5 {[%clk 0:02:13]}  Nb4 {[%clk 0:02:02]} 17. Qd2 {[%clk 0:02:13]}  Ne4 {[%clk 0:02:01]} 18. Qd1 {[%clk 0:02:06]}  f6 {[%clk 0:01:59]} 19. Nd3 {[%clk 0:02:04]}  Nc3 {[%clk 0:01:59]} 20. Qd2 {[%clk 0:02:04]}  Nxe2+ {[%clk 0:01:59]} 0-1


[Site "https://www.chess.com"]

[Event "Titled Tuesday Blitz December 06 Early 2022"]
[White "Shapiro, Daniel"]
[Black "Sadykov, Ramil"]
[WhiteFideId "2001780"]
[BlackFideId "24113590"]
[WhiteElo "2300"]
[BlackElo "2245"]
[Result "0-1"]
[Round "04"]
[TimeControl "180+1"]
[Date "2022.12.07"]
[WhiteClock "0:00:04"]
[BlackClock "0:00:48"]

1. d4 {[%clk 0:03:00]}  Nf6 {[%clk 0:02:58]} 2. c4 {[%clk 0:03:00]}  g6 {[%clk 0:02:58]} 3. Nc3 {[%clk 0:02:59]}  d5 {[%clk 0:02:58]} 4. Nf3 {[%clk 0:02:57]}  Bg7 {[%clk 0:02:58]} 5. Qb3 {[%clk 0:02:56]}  dxc4 {[%clk 0:02:55]} 6. Qxc4 {[%clk 0:02:57]}  O-O {[%clk 0:02:55]} 7. e4 {[%clk 0:02:57]}  a6 {[%clk 0:02:56]} 8. e5 {[%clk 0:02:56]}  b5 {[%clk 0:02:55]} 9. Qb3 {[%clk 0:02:53]}  Nfd7 {[%clk 0:02:56]} 10. Be3 {[%clk 0:02:47]}  c5 {[%clk 0:02:48]} 11. e6 {[%clk 0:02:30]}  c4 {[%clk 0:02:35]} 12. Qc2 {[%clk 0:02:23]}  Nb6 {[%clk 0:02:25]} 13. exf7+ {[%clk 0:02:20]}  Kh8 {[%clk 0:02:25]} 14. Be2 {[%clk 0:01:28]}  Bf5 {[%clk 0:02:23]} 15. Qd1 {[%clk 0:01:28]}  Nc6 {[%clk 0:02:13]} 16. h4 {[%clk 0:00:52]}  b4 {[%clk 0:01:55]} 17. Nb1 {[%clk 0:00:51]}  Qd5 {[%clk 0:01:47]} 18. h5 {[%clk 0:00:48]}  Rad8 {[%clk 0:01:46]} 19. hxg6 {[%clk 0:00:46]}  Bxg6 {[%clk 0:01:45]} 20. Nh4 {[%clk 0:00:44]}  Be4 {[%clk 0:01:29]} 21. f3 {[%clk 0:00:38]}  Rxf7 {[%clk 0:00:59]} 22. fxe4 {[%clk 0:00:36]}  Qxe4 {[%clk 0:01:00]} 23. Qc1 {[%clk 0:00:18]}  Nxd4 {[%clk 0:00:52]} 24. Rh3 {[%clk 0:00:04]}  Nc2+ {[%clk 0:00:48]} 0-1


[Site "https://www.chess.com"]

[Event "Titled Tuesday Blitz December 06 Early 2022"]
[White "Sipila, Vilka"]
[Black "Iskusnyh, Sergei"]
[WhiteFideId "505455"]
[BlackFideId "4120027"]
[WhiteElo "2348"]
[BlackElo "2492"]
[Result "0-1"]
[Round "04"]
[TimeControl "180+1"]
[Date "2022.12.07"]
[WhiteClock "0:00:42"]
[BlackClock "0:00:19"]

1. b3 {[%clk 0:03:00]}  d5 {[%clk 0:02:57]} 2. Bb2 {[%clk 0:03:01]}  Bf5 {[%clk 0:02:57]} 3. e3 {[%clk 0:03:01]}  e6 {[%clk 0:02:57]} 4. f4 {[%clk 0:03:01]}  Nf6 {[%clk 0:02:56]} 5. Nf3 {[%clk 0:03:02]}  Be7 {[%clk 0:02:56]} 6. Bd3 {[%clk 0:03:01]}  c5 {[%clk 0:02:53]} 7. Bb5+ {[%clk 0:03:00]}  Nbd7 {[%clk 0:02:49]} 8. Bxd7+ {[%clk 0:02:58]}  Qxd7 {[%clk 0:02:47]} 9. Ne5 {[%clk 0:02:53]}  Qc7 {[%clk 0:02:42]} 10. g4 {[%clk 0:02:53]}  Bg6 {[%clk 0:02:38]} 11. g5 {[%clk 0:02:51]}  Nh5 {[%clk 0:02:31]} 12. Qg4 {[%clk 0:02:29]}  O-O-O {[%clk 0:02:17]} 13. d3 {[%clk 0:01:58]}  Kb8 {[%clk 0:02:10]} 14. Nd2 {[%clk 0:01:52]}  Qa5 {[%clk 0:02:03]} 15. a3 {[%clk 0:01:46]}  Ka8 {[%clk 0:01:59]} 16. O-O-O {[%clk 0:01:45]}  c4 {[%clk 0:01:57]} 17. b4 {[%clk 0:01:44]}  Qa4 {[%clk 0:01:46]} 18. Nxg6 {[%clk 0:01:38]}  cxd3 {[%clk 0:01:38]} 19. cxd3 {[%clk 0:01:29]}  Rc8+ {[%clk 0:01:32]} 20. Kb1 {[%clk 0:01:29]}  Qc2+ {[%clk 0:01:31]} 21. Ka2 {[%clk 0:01:25]}  hxg6 {[%clk 0:01:32]} 22. Nb3 {[%clk 0:01:19]}  Qc6 {[%clk 0:00:47]} 23. Rc1 {[%clk 0:01:17]}  Qa6 {[%clk 0:00:47]} 24. Qe2 {[%clk 0:01:15]}  Bxb4 {[%clk 0:00:46]} 25. Rxc8+ {[%clk 0:01:12]}  Rxc8 {[%clk 0:00:45]} 26. Rc1 {[%clk 0:01:13]}  Rxc1 {[%clk 0:00:44]} 27. Nxc1 {[%clk 0:01:13]}  Bd6 {[%clk 0:00:41]} 28. Nb3 {[%clk 0:01:13]}  Qc6 {[%clk 0:00:39]} 29. Nd4 {[%clk 0:01:12]}  Qc8 {[%clk 0:00:37]} 30. Nb5 {[%clk 0:01:11]}  Bb8 {[%clk 0:00:36]} 31. Bd4 {[%clk 0:01:05]}  a6 {[%clk 0:00:35]} 32. Nc3 {[%clk 0:01:05]}  Ba7 {[%clk 0:00:33]} 33. Na4 {[%clk 0:01:01]}  Bxd4 {[%clk 0:00:29]} 34. exd4 {[%clk 0:01:02]}  Qc6 {[%clk 0:00:29]} 35. Nc5 {[%clk 0:01:00]}  Nxf4 {[%clk 0:00:28]} 36. Qe5 {[%clk 0:00:57]}  Nxd3 {[%clk 0:00:27]} 37. Qxg7 {[%clk 0:00:47]}  Nxc5 {[%clk 0:00:25]} 38. Qf8+ {[%clk 0:00:48]}  Ka7 {[%clk 0:00:24]} 39. dxc5 {[%clk 0:00:49]}  Qd7 {[%clk 0:00:19]} 40. Kb3 {[%clk 0:00:39]}  d4 {[%clk 0:00:19]} 41. Kc2 {[%clk 0:00:40]}  d3+ {[%clk 0:00:16]} 42. Kd2 {[%clk 0:00:40]}  e5 {[%clk 0:00:17]} 43. c6 {[%clk 0:00:35]}  Qxc6 {[%clk 0:00:17]} 44. Kxd3 {[%clk 0:00:35]}  Qd5+ {[%clk 0:00:16]} 45. Ke2 {[%clk 0:00:36]}  Qe4+ {[%clk 0:00:16]} 46. Kd1 {[%clk 0:00:35]}  Qd3+ {[%clk 0:00:15]} 47. Ke1 {[%clk 0:00:35]}  Qe3+ {[%clk 0:00:15]} 48. Kf1 {[%clk 0:00:36]}  Qf3+ {[%clk 0:00:14]} 49. Ke1 {[%clk 0:00:36]}  Qh1+ {[%clk 0:00:14]} 50. Kf2 {[%clk 0:00:36]}  Qxh2+ {[%clk 0:00:15]} 51. Kf1 {[%clk 0:00:34]}  Qf4+ {[%clk 0:00:14]} 52. Ke2 {[%clk 0:00:34]}  Qe4+ {[%clk 0:00:15]} 53. Kf2 {[%clk 0:00:34]}  Qf5+ {[%clk 0:00:15]} 54. Ke2 {[%clk 0:00:35]}  e4 {[%clk 0:00:13]} 55. Qd8 {[%clk 0:00:33]}  Qf3+ {[%clk 0:00:11]} 56. Kd2 {[%clk 0:00:32]}  Qd3+ {[%clk 0:00:10]} 57. Qxd3 {[%clk 0:00:32]}  exd3 {[%clk 0:00:11]} 58. Kxd3 {[%clk 0:00:33]}  b5 {[%clk 0:00:11]} 59. Kd4 {[%clk 0:00:33]}  Kb6 {[%clk 0:00:12]} 60. Ke5 {[%clk 0:00:31]}  a5 {[%clk 0:00:12]} 61. Kd5 {[%clk 0:00:30]}  b4 {[%clk 0:00:11]} 62. axb4 {[%clk 0:00:31]}  axb4 {[%clk 0:00:12]} 63. Kc4 {[%clk 0:00:32]}  Kc6 {[%clk 0:00:12]} 64. Kb3 {[%clk 0:00:33]}  Kd5 {[%clk 0:00:13]} 65. Kxb4 {[%clk 0:00:33]}  Ke5 {[%clk 0:00:14]} 66. Kc3 {[%clk 0:00:34]}  Kf4 {[%clk 0:00:14]} 67. Kd2 {[%clk 0:00:35]}  Kxg5 {[%clk 0:00:15]} 68. Ke3 {[%clk 0:00:36]}  Kg4 {[%clk 0:00:16]} 69. Kf2 {[%clk 0:00:36]}  f5 {[%clk 0:00:17]} 70. Kg2 {[%clk 0:00:37]}  f4 {[%clk 0:00:17]} 71. Kf2 {[%clk 0:00:38]}  f3 {[%clk 0:00:18]} 72. Kg1 {[%clk 0:00:38]}  Kf4 {[%clk 0:00:19]} 73. Kf2 {[%clk 0:00:38]}  Ke4 {[%clk 0:00:19]} 74. Kg1 {[%clk 0:00:39]}  Ke3 {[%clk 0:00:19]} 75. Kf1 {[%clk 0:00:40]}  f2 {[%clk 0:00:20]} 76. Kg2 {[%clk 0:00:40]}  Ke2 {[%clk 0:00:20]} 77. Kh2 {[%clk 0:00:40]}  f1=Q {[%clk 0:00:21]} 78. Kg3 {[%clk 0:00:41]}  Ke3 {[%clk 0:00:20]} 79. Kh4 {[%clk 0:00:42]}  Qg1 {[%clk 0:00:19]} 80. Kh3 {[%clk 0:00:41]}  Kf3 {[%clk 0:00:19]} 81. Kh4 {[%clk 0:00:42]}  Qg4# {[%clk 0:00:19]} 0-1


[Site "https://www.chess.com"]

[Event "Titled Tuesday Blitz December 06 Early 2022"]
[White "Tarlabasi, Emirhan"]
[Black "Dudzinski, Pawel"]
[WhiteFideId "6350275"]
[BlackFideId "1117890"]
[WhiteElo "2200"]
[BlackElo "2099"]
[Result "1/2-1/2"]
[Round "04"]
[TimeControl "180+1"]
[Date "2022.12.07"]
[WhiteClock "0:01:41"]
[BlackClock "0:00:11"]

1. Nf3 {[%clk 0:03:00]}  g6 {[%clk 0:02:53]} 2. c4 {[%clk 0:03:01]}  Bg7 {[%clk 0:02:53]} 3. d4 {[%clk 0:03:01]}  f5 {[%clk 0:02:52]} 4. b3 {[%clk 0:03:02]}  Nf6 {[%clk 0:02:51]} 5. Bb2 {[%clk 0:03:02]}  O-O {[%clk 0:02:51]} 6. g3 {[%clk 0:03:01]}  d6 {[%clk 0:02:52]} 7. Bg2 {[%clk 0:03:02]}  Ne4 {[%clk 0:02:52]} 8. Nc3 {[%clk 0:03:02]}  Nxc3 {[%clk 0:02:52]} 9. Bxc3 {[%clk 0:03:03]}  c6 {[%clk 0:02:48]} 10. Qc2 {[%clk 0:03:03]}  Qe8 {[%clk 0:02:48]} 11. e4 {[%clk 0:03:03]}  f4 {[%clk 0:02:47]} 12. O-O {[%clk 0:03:02]}  Bg4 {[%clk 0:02:41]} 13. d5 {[%clk 0:03:01]}  fxg3 {[%clk 0:02:34]} 14. fxg3 {[%clk 0:03:01]}  Bxf3 {[%clk 0:02:09]} 15. Rxf3 {[%clk 0:02:54]}  Nd7 {[%clk 0:02:05]} 16. Bxg7 {[%clk 0:02:50]}  Rxf3 {[%clk 0:01:52]} 17. Bxf3 {[%clk 0:02:43]}  Kxg7 {[%clk 0:01:51]} 18. Bg4 {[%clk 0:02:42]}  Ne5 {[%clk 0:01:40]} 19. Be6 {[%clk 0:02:40]}  Qd8 {[%clk 0:01:19]} 20. Qf2 {[%clk 0:02:34]}  Qb6 {[%clk 0:01:14]} 21. Rf1 {[%clk 0:02:32]}  Qxf2+ {[%clk 0:00:57]} 22. Rxf2 {[%clk 0:02:32]}  c5 {[%clk 0:00:57]} 23. Kg2 {[%clk 0:02:23]}  a6 {[%clk 0:00:55]} 24. a4 {[%clk 0:02:22]}  a5 {[%clk 0:00:49]} 25. Rf4 {[%clk 0:02:16]}  Ra6 {[%clk 0:00:44]} 26. Bc8 {[%clk 0:02:07]}  Rb6 {[%clk 0:00:41]} 27. h4 {[%clk 0:02:05]}  h5 {[%clk 0:00:27]} 28. g4 {[%clk 0:02:01]}  hxg4 {[%clk 0:00:27]} 29. Bxg4 {[%clk 0:02:02]}  Rxb3 {[%clk 0:00:27]} 30. h5 {[%clk 0:02:01]}  Rb4 {[%clk 0:00:17]} 31. hxg6 {[%clk 0:01:40]}  Nxg6 {[%clk 0:00:17]} 32. Rf5 {[%clk 0:01:38]}  Rxc4 {[%clk 0:00:13]} 33. Rg5 {[%clk 0:01:39]}  Kh6 {[%clk 0:00:12]} 34. Rh5+ {[%clk 0:01:39]}  Kg7 {[%clk 0:00:13]} 35. Rg5 {[%clk 0:01:40]}  Kf6 {[%clk 0:00:11]} 36. Rf5+ {[%clk 0:01:41]}  Kg7 {[%clk 0:00:11]} 37. Rg5 {[%clk 0:01:41]} 1/2-1/2


[Site "https://www.chess.com"]

[Event "Titled Tuesday Blitz December 06 Early 2022"]
[White "Tay, Junior"]
[Black "Salman, Pavel"]
[WhiteFideId "5800439"]
[BlackFideId "24153753"]
[WhiteElo "2216"]
[BlackElo "2187"]
[Result "0-1"]
[Round "04"]
[TimeControl "180+1"]
[Date "2022.12.07"]
[WhiteClock "0:00:21"]
[BlackClock "0:00:12"]

1. e4 {[%clk 0:02:57]}  d6 {[%clk 0:02:59]} 2. Nc3 {[%clk 0:02:57]}  Nf6 {[%clk 0:03:00]} 3. f4 {[%clk 0:02:57]}  g6 {[%clk 0:03:00]} 4. Nf3 {[%clk 0:02:57]}  Bg7 {[%clk 0:03:00]} 5. Bc4 {[%clk 0:02:58]}  O-O {[%clk 0:03:00]} 6. d3 {[%clk 0:02:57]}  a6 {[%clk 0:03:00]} 7. f5 {[%clk 0:02:57]}  b5 {[%clk 0:03:00]} 8. Bb3 {[%clk 0:02:57]}  gxf5 {[%clk 0:02:58]} 9. O-O {[%clk 0:02:57]}  fxe4 {[%clk 0:02:56]} 10. dxe4 {[%clk 0:02:56]}  c5 {[%clk 0:02:56]} 11. Bd5 {[%clk 0:02:50]}  Ra7 {[%clk 0:02:50]} 12. e5 {[%clk 0:02:47]}  dxe5 {[%clk 0:02:31]} 13. Bg5 {[%clk 0:02:36]}  b4 {[%clk 0:02:16]} 14. Bxf6 {[%clk 0:02:35]}  exf6 {[%clk 0:02:12]} 15. Ne4 {[%clk 0:02:23]}  Rd7 {[%clk 0:02:11]} 16. c4 {[%clk 0:02:22]}  bxc3 {[%clk 0:01:57]} 17. Nxc3 {[%clk 0:02:22]}  Bb7 {[%clk 0:01:56]} 18. Bxb7 {[%clk 0:02:18]}  Rxd1 {[%clk 0:01:55]} 19. Raxd1 {[%clk 0:02:19]}  Qb6 {[%clk 0:01:56]} 20. Bd5 {[%clk 0:02:16]}  Qxb2 {[%clk 0:01:49]} 21. Ne4 {[%clk 0:02:15]}  f5 {[%clk 0:01:41]} 22. Nd6 {[%clk 0:02:14]}  e4 {[%clk 0:01:36]} 23. Ng5 {[%clk 0:02:13]}  Bd4+ {[%clk 0:01:35]} 24. Kh1 {[%clk 0:02:13]}  Nd7 {[%clk 0:01:27]} 25. Ngxf7 {[%clk 0:02:04]}  Nf6 {[%clk 0:01:18]} 26. Bc4 {[%clk 0:01:52]}  Ng4 {[%clk 0:00:45]} 27. Ng5+ {[%clk 0:01:10]}  Kh8 {[%clk 0:00:38]} 28. Ngxe4 {[%clk 0:00:58]}  Ne3 {[%clk 0:00:20]} 29. Rd2 {[%clk 0:00:50]}  Qb6 {[%clk 0:00:17]} 30. Rdf2 {[%clk 0:00:26]}  Nxf1 {[%clk 0:00:17]} 31. Rxf1 {[%clk 0:00:27]}  Kg7 {[%clk 0:00:10]} 32. Nxf5+ {[%clk 0:00:26]}  Rxf5 {[%clk 0:00:10]} 33. Rxf5 {[%clk 0:00:25]}  Qb1+ {[%clk 0:00:10]} 34. Rf1 {[%clk 0:00:22]}  Qxe4 {[%clk 0:00:11]} 35. h3 {[%clk 0:00:22]}  Be3 {[%clk 0:00:11]} 36. Rf7+ {[%clk 0:00:18]}  Kg6 {[%clk 0:00:10]} 37. Bd3 {[%clk 0:00:19]}  Qxd3 {[%clk 0:00:11]} 38. Rf3 {[%clk 0:00:19]}  Qb1+ {[%clk 0:00:11]} 39. Kh2 {[%clk 0:00:20]}  Bd4 {[%clk 0:00:11]} 40. Kg3 {[%clk 0:00:20]}  Be5+ {[%clk 0:00:12]} 41. Kg4 {[%clk 0:00:21]}  Qe4+ {[%clk 0:00:12]} 0-1


[Site "https://www.chess.com"]